{"text_format":"1","workbook":"xlsx","n_sheets":8,"sheets":["Help","Level1","Level2","Level3","Level4","Level5","Score_Board","calcs"],"not_rendered":{"charts":5,"images":25,"macros":1,"external_links":0,"defined_names":16,"comments":0,"pivot_tables":0},"unopened":[],"bounds":{"document_bytes":16777216,"sheet_cells":100000,"rows_first":2000,"rows_last":500,"rows_between":2000,"halvings":0,"cell_chars":16384,"cell_head_chars":4096},"cells_cut":0,"cells_raw":0,"read":"whole","date_system":"1900"}

{"sheet":"Help","index":0,"n_rows":0,"n_cols":0,"rows_kept":0,"cut":false,"hidden":false,"merged":[]}

{"sheet":"Level1","index":1,"n_rows":34,"n_cols":28,"rows_kept":34,"cut":false,"hidden":false,"merged":[]}
[]
[]
[]
[]
[]
[]
[]
[]
[]
[null,null,1000]
[]
[]
[]
[]
[]
[]
[]
[]
[]
[]
[]
[]
[]
[]
[]
[null,null,null,null,null,null,null,null,null,null,null,null,null,null,null,null,null,null,null,null,null,null,null,null,null,"Power",null,"Angle"]
[null,null,null,null,null,null,null,null,null,null,null,null,null,null,null,null,null,null,null,null,null,null,null,null,null,800,null,10]
[null,null,null,null,null,null,null,null,null,null,null,null,null,null,null,null,null,null,null,null,null,null,null,null,null,900,null,15]
[null,null,null,null,null,null,null,null,null,null,null,null,null,null,null,null,null,null,null,null,null,null,null,null,null,1000,null,20]
[null,null,null,null,null,null,null,null,null,null,null,null,null,null,null,null,null,null,null,null,null,null,null,null,null,1100,null,25]
[null,null,null,null,null,null,null,null,null,null,null,null,null,null,null,null,null,null,null,null,null,null,null,null,null,1200,null,30]
[null,null,null,null,null,null,null,null,null,null,null,null,null,null,null,null,null,null,null,null,null,null,null,null,null,1300,null,35]
[null,null,null,null,null,null,null,null,null,null,null,null,null,null,null,null,null,null,null,null,null,null,null,null,null,1400,null,40]
[null,null,null,null,null,null,null,null,null,null,null,null,null,null,null,null,null,null,null,null,null,null,null,null,null,1500,null,45]

{"sheet":"Level2","index":2,"n_rows":35,"n_cols":28,"rows_kept":35,"cut":false,"hidden":false,"merged":[]}
[]
[]
[]
[]
[]
[]
[]
[null,null,{"$f":"Level1!$C$10+C11","v":2000}]
[]
[]
[null,null,1000]
[]
[]
[]
[]
[]
[]
[]
[]
[]
[]
[]
[]
[]
[]
[]
[null,null,null,null,null,null,null,null,null,null,null,null,null,null,null,null,null,null,null,null,null,null,null,null,null,"Power",null,"Angle"]
[null,null,null,null,null,null,null,null,null,null,null,null,null,null,null,null,null,null,null,null,null,null,null,null,null,800,null,10]
[null,null,null,null,null,null,null,null,null,null,null,null,null,null,null,null,null,null,null,null,null,null,null,null,null,900,null,15]
[null,null,null,null,null,null,null,null,null,null,null,null,null,null,null,null,null,null,null,null,null,null,null,null,null,1000,null,20]
[null,null,null,null,null,null,null,null,null,null,null,null,null,null,null,null,null,null,null,null,null,null,null,null,null,1100,null,25]
[null,null,null,null,null,null,null,null,null,null,null,null,null,null,null,null,null,null,null,null,null,null,null,null,null,1200,null,30]
[null,null,null,null,null,null,null,null,null,null,null,null,null,null,null,null,null,null,null,null,null,null,null,null,null,1300,null,35]
[null,null,null,null,null,null,null,null,null,null,null,null,null,null,null,null,null,null,null,null,null,null,null,null,null,1400,null,40]
[null,null,null,null,null,null,null,null,null,null,null,null,null,null,null,null,null,null,null,null,null,null,null,null,null,1500,null,45]

{"sheet":"Level3","index":3,"n_rows":38,"n_cols":28,"rows_kept":38,"cut":false,"hidden":false,"merged":[]}
[]
[]
[]
[]
[]
[]
[]
[]
[]
[]
[null,null,{"$f":"Level2!$C$8+C14","v":3000}]
[]
[]
[null,null,1000]
[]
[]
[]
[]
[]
[]
[]
[]
[]
[]
[]
[]
[]
[]
[]
[null,null,null,null,null,null,null,null,null,null,null,null,null,null,null,null,null,null,null,null,null,null,null,null,null,"Power",null,"Angle"]
[null,null,null,null,null,null,null,null,null,null,null,null,null,null,null,null,null,null,null,null,null,null,null,null,null,800,null,10]
[null,null,null,null,null,null,null,null,null,null,null,null,null,null,null,null,null,null,null,null,null,null,null,null,null,900,null,15]
[null,null,null,null,null,null,null,null,null,null,null,null,null,null,null,null,null,null,null,null,null,null,null,null,null,1000,null,20]
[null,null,null,null,null,null,null,null,null,null,null,null,null,null,null,null,null,null,null,null,null,null,null,null,null,1100,null,25]
[null,null,null,null,null,null,null,null,null,null,null,null,null,null,null,null,null,null,null,null,null,null,null,null,null,1200,null,30]
[null,null,null,null,null,null,null,null,null,null,null,null,null,null,null,null,null,null,null,null,null,null,null,null,null,1300,null,35]
[null,null,null,null,null,null,null,null,null,null,null,null,null,null,null,null,null,null,null,null,null,null,null,null,null,1400,null,40]
[null,null,null,null,null,null,null,null,null,null,null,null,null,null,null,null,null,null,null,null,null,null,null,null,null,1500,null,45]

{"sheet":"Level4","index":4,"n_rows":34,"n_cols":25,"rows_kept":34,"cut":false,"hidden":false,"merged":[]}
[]
[]
[]
[]
[]
[]
[]
[]
[null,null,{"$f":"Level3!C$11+Level4!C12","v":4000}]
[]
[]
[null,null,1000]
[]
[]
[]
[]
[]
[]
[]
[]
[]
[]
[]
[]
[]
[null,null,null,null,null,null,null,null,null,null,null,null,null,null,null,null,null,null,null,null,null,null,"Power",null,"Angle"]
[null,null,null,null,null,null,null,null,null,null,null,null,null,null,null,null,null,null,null,null,null,null,800,null,10]
[null,null,null,null,null,null,null,null,null,null,null,null,null,null,null,null,null,null,null,null,null,null,900,null,15]
[null,null,null,null,null,null,null,null,null,null,null,null,null,null,null,null,null,null,null,null,null,null,1000,null,20]
[null,null,null,null,null,null,null,null,null,null,null,null,null,null,null,null,null,null,null,null,null,null,1100,null,25]
[null,null,null,null,null,null,null,null,null,null,null,null,null,null,null,null,null,null,null,null,null,null,1200,null,30]
[null,null,null,null,null,null,null,null,null,null,null,null,null,null,null,null,null,null,null,null,null,null,1300,null,35]
[null,null,null,null,null,null,null,null,null,null,null,null,null,null,null,null,null,null,null,null,null,null,1400,null,40]
[null,null,null,null,null,null,null,null,null,null,null,null,null,null,null,null,null,null,null,null,null,null,1500,null,45]

{"sheet":"Level5","index":5,"n_rows":27,"n_cols":25,"rows_kept":27,"cut":false,"hidden":false,"merged":[]}
[]
[]
[]
[]
[]
[]
[]
[null,null,{"$f":"Level4!C9+Level5!C11","v":5000}]
[]
[]
[null,null,1000]
[]
[]
[]
[]
[]
[]
[]
[null,null,null,null,null,null,null,null,null,null,null,null,null,null,null,null,null,null,null,null,null,null,"Power",null,"Angle"]
[null,null,null,null,null,null,null,null,null,null,null,null,null,null,null,null,null,null,null,null,null,null,800,null,10]
[null,null,null,null,null,null,null,null,null,null,null,null,null,null,null,null,null,null,null,null,null,null,900,null,15]
[null,null,null,null,null,null,null,null,null,null,null,null,null,null,null,null,null,null,null,null,null,null,1000,null,20]
[null,null,null,null,null,null,null,null,null,null,null,null,null,null,null,null,null,null,null,null,null,null,1100,null,25]
[null,null,null,null,null,null,null,null,null,null,null,null,null,null,null,null,null,null,null,null,null,null,1200,null,30]
[null,null,null,null,null,null,null,null,null,null,null,null,null,null,null,null,null,null,null,null,null,null,1300,null,35]
[null,null,null,null,null,null,null,null,null,null,null,null,null,null,null,null,null,null,null,null,null,null,1400,null,40]
[null,null,null,null,null,null,null,null,null,null,null,null,null,null,null,null,null,null,null,null,null,null,1500,null,45]

{"sheet":"Score_Board","index":6,"n_rows":3,"n_cols":4,"rows_kept":3,"cut":false,"hidden":false,"merged":[]}
[]
[null,"Last Name","First Name","Score "]
[null,"Doe","John",5000]

{"sheet":"calcs","index":7,"n_rows":35,"n_cols":6,"rows_kept":35,"cut":false,"hidden":true,"merged":[]}
[]
[null,"initial velocity","1300",null,"initial x velocity",{"$f":"vtheta*COS(RADIANS(theta))","v":1064.8976575756894}]
[null,"theta","35",null,"initial y velocity",{"$f":"vtheta*SIN(RADIANS(theta))","v":745.64936725635982}]
[null,"acceleration",-9.8000000000000007,null,"time",{"$f":"2*((0-vy)/a)","v":152.17334025639994}]
[null,null,null,null,"x distance",{"$f":"vx*t","v":162049.03358450867}]
[null,null,null,null,"max y distance",{"$f":"vy*(t/2)+0.5*a*(t/2)^2","v":28366.988718867844}]
[null,"time intervals","x-distance","y-distance"]
[null,0,{"$f":"vx*t*B8","v":0},{"$f":"vy*(t*B8)+0.5*a*(t*B8)^2","v":0}]
[null,0.1,16204.903358450867,10212.115938792424,"For certain theta","Max Velocity"]
[null,0.2,32409.806716901734,18154.87278007542,80,1100]
[null,0.3,48614.710075352596,23828.270523848987,70,1200]
[null,0.4,64819.613433803468,27232.309170113131,60,1300]
[null,0.5,81024.516792254333,28366.988718867844,50,1400]
[null,0.6,97229.420150705191,27232.309170113142,40,1500]
[null,0.7,113434.32350915606,23828.270523848987,30,1600]
[null,0.8,129639.22686760694,18154.872780075428,20,1900]
[null,0.9,145844.13022605781,10212.115938792427,10,2600]
[null,1,162049.03358450867,0]
[]
[null,"Max Graph","x-distance","y-distance"]
[null,null,0,0]
[null,null,22959.18367346939,20663.265306122448]
[null,null,45918.36734693878,36734.693877551013]
[null,null,68877.551020408166,48214.285714285703]
[null,null,91836.734693877559,55102.040816326517]
[null,null,114795.91836734694,57397.959183673462]
[null,null,137755.10204081633,55102.040816326509]
[null,null,160714.28571428571,48214.28571428571]
[null,null,183673.46938775512,36734.693877550977]
[null,null,206632.6530612245,20663.265306122426]
[null,null,229591.83673469388,0]
[null,"Notes:"]
[null,"Initial velocity and theta can be changed and we calculate everything from those plus acceleration"]
[null,"This graph is just here to let you see what happens to the graph with each option and to observe if it stretches the graph"]
[null,"We might have to limit the range of velocities based on the theta, so that it stays in the window provided, because if it goes larger, it will change the scale"]